fUSD/lending_fUSD_20250319
["ID","MTS","AMOUNT","RATE_DAILY","PERIOD"]
[356404089,1742411448173,-954.96,0.00029889,2]
[356404090,1742411448184,-500.0,0.00029889,2]
[356404091,1742411448198,-500.0,0.00029889,2]
[356404092,1742411448208,-582.65,0.00029889,2]
[356404093,1742411448219,-382.33,0.00029889,2]
[356404094,1742411448231,-976.82,0.00029889,2]
[356404095,1742411448243,-808.21,0.00029889,2]
[356404096,1742411448254,-500.0,0.00029889,2]
[356404097,1742411448266,-500.0,0.00029889,2]
[356404098,1742411448277,-884.58,0.00029889,2]
[356404099,1742411448288,-274.21180715,0.00029889,2]
[356404100,1742411448299,-948.36,0.00029889,2]
[356404101,1742411448310,-610.25,0.00029889,2]
[356404102,1742411448571,-262.87749675,0.00029889,2]
[356404103,1742411448582,-628.48,0.00029889,2]
[356404104,1742411448591,-280.49520646,0.00029889,2]
[356404105,1742411448603,-500.0,0.00029889,2]
[356404106,1742411448613,-500.0,0.00029889,2]
[356404107,1742411448623,-500.0,0.00029889,2]
[356404108,1742411448634,-544.15,0.00029889,2]
[356404109,1742411448645,-655.23,0.00029889,2]
[356404110,1742411448655,-500.0,0.00029889,2]
[356404111,1742411448666,-740.86,0.00029889,2]
[356404112,1742411448676,-644.52,0.00029889,2]
[356404113,1742411448686,-593.76,0.00029889,2]
[356404114,1742411448696,-935.12,0.00029889,2]
[356404115,1742411448705,-1920.23,0.00029889,2]
[356404116,1742411448715,-500.0,0.00029889,2]
[356404117,1742411448726,-1001.43,0.00029889,2]
[356404118,1742411448735,-594.83,0.00029889,2]
[356404119,1742411448745,-500.0,0.00029889,2]
[356404120,1742411448755,-771.2,0.00029889,2]
[356404121,1742411448764,-822.19,0.00029889,2]
[356404122,1742411448774,-500.0,0.00029889,2]
[356404123,1742411448784,-1180.48,0.00029889,2]
[356404124,1742411448793,-500.0,0.00029889,2]
[356404125,1742411448803,-511.01699624,0.00029889,2]
[356404126,1742411448813,-500.0,0.00029889,2]
[356404127,1742411448823,-941.4,0.00029889,2]
[356404128,1742411448833,-500.0,0.00029889,2]
[356404129,1742411448843,-500.0,0.00029889,2]
[356404130,1742411448853,-727.43,0.00029889,2]
[356404131,1742411448864,-500.0,0.00029889,2]
[356404132,1742411448874,-576.76,0.00029889,2]
[356404133,1742411448883,-500.0,0.00029889,2]
[356404134,1742411448893,-500.0,0.00029889,2]
[356404135,1742411448903,-500.0,0.00029889,2]
[356404136,1742411448913,-500.0,0.00029889,2]
[356404137,1742411448924,-500.0,0.00029889,2]
[356404138,1742411448933,-1062.44,0.00029889,2]
[356404139,1742411448943,-500.0,0.00029889,2]
[356404140,1742411448952,-500.0,0.00029889,2]
[356404141,1742411448963,-1088.28,0.00029889,2]
[356404142,1742411448973,-500.0,0.00029889,2]
[356404143,1742411448983,-618.18,0.00029889,2]
[356404144,1742411448993,-500.0,0.00029889,2]
[356404145,1742411449003,-500.0,0.00029889,2]
[356404146,1742411449014,-500.0,0.00029889,2]
[356404147,1742411449030,-500.0,0.00029889,2]
[356404148,1742411449040,-500.0,0.00029889,2]
[356404149,1742411449050,-537.11,0.00029889,2]
[356404150,1742411449061,-500.0,0.00029889,2]
[356404151,1742411449073,-541.71,0.00029889,2]
[356404152,1742411449083,-212.64218957,0.00029889,2]
[356404153,1742411449093,-500.0,0.00029889,2]
[356404154,1742411449109,-500.0,0.00029889,2]
[356404155,1742411449119,-890.31,0.00029889,2]
[356404156,1742411449129,-500.0,0.00029889,2]
[356404157,1742411449139,-606.09,0.00029889,2]
[356404158,1742411449151,-1167.97,0.00029889,2]
[356404159,1742411449161,-500.0,0.00029889,2]
[356404160,1742411449172,-500.0,0.00029889,2]
[356404161,1742411449182,-500.0,0.00029889,2]
[356404162,1742411449195,-500.0,0.00029889,2]
[356404163,1742411449206,-500.0,0.00029889,2]
[356404164,1742411449216,-500.0,0.00029889,2]
[356404165,1742411449226,-500.0,0.00029889,2]
[356404166,1742411449236,-348.33065708,0.00029889,2]
[356404167,1742411449246,-500.0,0.00029889,2]
[356404168,1742411449256,-500.0,0.00029889,2]
[356404169,1742411449265,-574.36,0.00029889,2]
[356404170,1742411449275,-604.96,0.00029889,2]
[356404171,1742411449286,-500.0,0.00029889,2]
[356404172,1742411449297,-500.0,0.00029889,2]
[356404173,1742411449307,-500.0,0.00029889,2]
[356404174,1742411449318,-500.0,0.00029889,2]
[356404175,1742411449328,-1002.7,0.00029889,2]
[356404176,1742411449337,-500.0,0.00029889,2]
[356404177,1742411449349,-1201.41,0.00029889,2]
[356404178,1742411449360,-500.0,0.00029889,2]
[356404179,1742411449370,-519.50873177,0.00029889,2]
[356404180,1742411449380,-153.35233693,0.00029889,2]
[356404181,1742411449392,-500.0,0.00029889,2]
[356404182,1742411449403,-660.12,0.00029889,2]
[356404183,1742411449413,-500.0,0.00029889,2]
[356404184,1742411449423,-500.0,0.00029889,2]
[356404185,1742411449435,-821.93,0.00029889,2]
[356404186,1742411449446,-500.0,0.00029889,2]
[356404187,1742411449457,-500.0,0.00029889,2]
[356404188,1742411449468,-522.1111142,0.00029889,2]
[356404189,1742411449479,-584.45,0.00029889,2]
[356404190,1742411449490,-773.77,0.00029889,2]
[356404191,1742411449499,-500.0,0.00029889,2]
[356404192,1742411449509,-538.5115778,0.00029889,2]
[356404193,1742411449519,-500.0,0.00029889,2]
[356404194,1742411449534,-500.0,0.00029889,2]
[356404195,1742411449556,-500.0,0.00029889,2]
[356404196,1742411449566,-500.0,0.00029889,2]
[356404197,1742411449576,-500.0,0.00029889,2]
[356404198,1742411449586,-854.15,0.00029889,2]
[356404199,1742411449595,-500.0,0.00029889,2]
[356404200,1742411449605,-500.0,0.00029889,2]
[356404201,1742411449614,-500.0,0.00029889,2]
[356404202,1742411449624,-16143.4754445,0.0002989,3]
[356404203,1742411449640,-168.11606058,0.00029898,2]
[356404204,1742411449655,-150.0,0.00029899,2]
[356404205,1742411449665,-500.0,0.00029899,2]
[356404206,1742411449675,-305.12,0.00029899,2]
[356404207,1742411449684,-126088.0554892,0.000299,3]
[356404208,1742411450413,-4542.7080499,0.000299,3]
[356404209,1742411450425,-518.76164514,0.000299,3]
[356404210,1742411450436,-1006.92967073,0.000299,3]
[356404211,1742411450447,-51096.79841964,0.000299,3]
[356404212,1742411450470,-43802.34226556,0.000299,3]
[356404213,1742411450571,-4824.81635263,0.000299,3]
[356404214,1742411450584,-2625.61591321,0.000299,3]
[356404215,1742411711332,-1511.137577,0.00028277,2]
[356404216,1742411722544,-151.72825161,0.0002832,2]
[356404217,1742411722569,-2632.5,0.0002842,2]
[356404218,1742411722597,-3142.39360602,0.0002842,2]
[356404219,1742411731764,-151.72825161,0.0002842,2]
[356404220,1742412031421,-2000.0,0.00028789,120]
[356404224,1742412355727,27574.45198314,6.94e-05,2]
[356406812,1742412631798,-585.17802667,0.00023,30]
[356406813,1742412631813,-487.50255243,0.00023,30]
[356406815,1742412631823,-418.63,0.00026849,2]
[356406816,1742412631832,-439.12,0.00026988,2]
[356406817,1742412631842,-1000.0,0.0002869,2]
[356406819,1742412631851,-5027.2631305,0.00028789,2]
[356406822,1742412631904,-4762.1168695,0.00028789,2]
[356406823,1742412631915,-161.5,0.00028797,120]
[356406824,1742412631924,-168.92,0.000289,2]
[356406826,1742412631934,-225.88741023,0.000289,5]
[356406827,1742412631944,-150.08,0.00028903,2]
[356406828,1742412631953,-500.0,0.00028904,2]
[356406830,1742412631963,-997.82737984,0.00028904,2]
[356406831,1742412631983,-445.61213266,0.00028904,2]
[356406833,1742412631996,-2543.7604875,0.00028904,2]
[356406834,1742412632006,-187.14,0.0002893,2]
[356406835,1742412632016,-150.0,0.0002893,2]
[356406837,1742412632027,-250.0,0.00028931,2]
[356406838,1742412632036,-7316.56138409,0.00028931,2]
[356406840,1742412632068,-857.14,0.00028931,2]
[356406842,1742412632079,-1648.49031376,0.00028931,2]
[356406846,1742412632179,-177.79830215,0.00028931,2]
[356406848,1742412632189,-171.73,0.00028931,2]
[356406849,1742412632199,-9257.15163874,0.00028931,2]
[356406850,1742412632210,-742.83836126,0.00028931,2]
[356406852,1742412632219,-170.52,0.00028996,2]
[356406853,1742412632229,-150.08,0.00029063,2]
[356406854,1742412632238,-184.3,0.00029205,2]
[356406856,1742412632249,-150.08,0.00029224,2]
[356406857,1742412632259,-439.12,0.00029252,2]
[356406858,1742412632268,-150.08,0.00029384,2]
[356406860,1742412632277,-150.08,0.00029545,2]
[356406861,1742412632286,-492.89450901,0.000296,2]
[356406862,1742412632295,-150.08,0.00029705,2]
[356406864,1742412632305,-150.0,0.00029732,2]
[356406865,1742412632314,-150.0,0.00029741,2]
[356406866,1742412632324,-150.0,0.00029745,2]
[356406868,1742412632334,-174.75403174,0.00029745,2]
[356406869,1742412632343,-150.0,0.00029753,2]
[356406870,1742412632353,-150.0,0.00029759,2]
[356406872,1742412632362,-1494.91804596,0.00029765,2]
[356406880,1742412632551,-150.0,0.00029769,2]
[356406883,1742412632624,-274.42143336,0.00029772,2]
[356406884,1742412632634,-274.42143335,0.00029775,2]
[356406885,1742412632643,-150.0,0.00029777,2]
[356406887,1742412632653,-502.22001266,0.00029777,2]
[356406888,1742412632663,-500.0,0.00029777,2]
[356406889,1742412632672,-500.0,0.00029777,2]
[356406891,1742412632681,-500.0,0.00029777,2]
[356406892,1742412632690,-567.07104567,0.00029777,2]
[356406893,1742412632700,-345.91595018,0.00029778,2]
[356406895,1742412632709,-500.0,0.00029778,2]
[356406896,1742412632719,-2027.1227,0.00029778,2]
[356406897,1742412632729,-9378.4382,0.00029778,2]
[356406899,1742412632738,-151.4083,0.00029778,2]
[356406900,1742412632751,-2275.2881,0.00029778,2]
[356406901,1742412632760,-459.8234,0.00029778,2]
[356406903,1742412632770,-222.0,0.00029778,2]
[356406904,1742412632780,-4410.3351,0.00029778,2]
[356406905,1742412632790,-2000.0,0.00029778,120]
[356406907,1742412632800,-655.4975,0.00029778,2]
[356406908,1742412632809,-3750.7015,0.00029778,2]
[356406909,1742412632819,-274.42143335,0.00029778,2]
[356406910,1742412632828,-345.91595015,0.0002978,2]
[356406912,1742412632838,-274.42143335,0.00029781,2]
[356406913,1742412632848,-345.91595015,0.00029783,2]
[356406915,1742412632858,-274.42143335,0.00029784,2]
[356406916,1742412632868,-345.91595015,0.00029785,2]
[356406917,1742412632878,-274.42143335,0.00029788,2]
[356406919,1742412632888,-144.55942277,0.00029788,2]
[356407074,1742412637660,-201.35652738,0.00029788,2]
[356407075,1742412637671,-345.91595015,0.0002979,2]
[356407077,1742412637681,-274.42143335,0.00029791,2]
[356407078,1742412637690,-345.91595015,0.00029793,2]
[356407079,1742412637699,-274.42143335,0.00029794,2]
[356407081,1742412637709,-345.91595015,0.00029795,2]
[356407082,1742412637719,-274.42143335,0.00029797,2]
[356407083,1742412637729,-150.0,0.00029797,2]
[356407084,1742412637738,-345.91595015,0.00029798,2]
[356407086,1742412637750,-150.0,0.00029799,2]
[356407087,1742412637759,-737.107,0.000298,24]
[356407088,1742412637769,-209.093,0.000298,24]
[356407090,1742412637778,-179.91550213,0.000298,2]
[356407091,1742412637788,-345.91595015,0.000298,2]
[356407092,1742412637797,-198.74732324,0.000298,2]
[356407094,1742412637809,-75.67411011,0.000298,2]
[356407095,1742412637818,-551.75680201,0.000298,2]
[356407096,1742412637828,-150.0,0.00029802,2]
[356407098,1742412637838,-150.0,0.00029805,2]
[356407099,1742412637847,-150.0,0.00029814,2]
[356407100,1742412637857,-150.0,0.00029814,2]
[356407101,1742412637867,-150.0,0.00029817,2]
[356407102,1742412637876,-150.0,0.00029819,2]
[356407104,1742412637886,-183.29147413,0.00029824,2]
[356407105,1742412637895,-1012.18398476,0.00029829,2]
[356407106,1742412637904,-150.0,0.0002984,2]
[356407107,1742412637913,-150.0,0.00029843,2]
[356407109,1742412637923,-150.0,0.00029847,2]
[356407110,1742412637932,-280.5,0.00029858,3]
[356407111,1742412637941,-841.52,0.00029858,3]
[356407112,1742412637951,-3018.0,0.00029863,2]
[356407113,1742412637961,-168.83,0.00029866,2]
[356407115,1742412637970,-150.08,0.00029866,2]
[356407116,1742412637980,-150.0,0.00029867,2]
[356407117,1742412637989,-683.56,0.00029867,2]
[356407118,1742412638001,-685.06,0.00029867,2]
[356407119,1742412638011,-591.46,0.00029867,2]
[356407121,1742412638020,-582.62,0.00029867,2]
[356407122,1742412638030,-500.0,0.00029867,2]
[356407123,1742412638039,-500.0,0.00029867,2]
[356407124,1742412638049,-513.09,0.00029867,2]
[356407126,1742412638058,-500.0,0.00029867,2]
[356407127,1742412638067,-500.0,0.00029867,2]
[356407128,1742412638076,-500.0,0.00029867,2]
[356407129,1742412638086,-239.34310594,0.00029867,2]
[356407130,1742412638095,-500.0,0.00029867,2]
[356407132,1742412638105,-500.0,0.00029867,2]
[356407133,1742412638115,-155.84613686,0.00029867,2]
[356407134,1742412638124,-311.73065964,0.00029867,2]
[356407135,1742412638134,-500.0,0.00029867,2]
[356407137,1742412638144,-151421.239519,0.00029868,3]
[356407138,1742412638153,-2196.52189945,0.00029868,3]
[356407139,1742412638163,-11647.7876553,0.0002987,3]
[356407140,1742412638172,-4393.0437989,0.0002987,3]
[356407142,1742412638180,-150.0,0.00029872,2]
[356407143,1742412638190,-210.0808116,0.00029873,5]
[356407144,1742412638199,-500.41289591,0.00029873,5]
[356407145,1742412638208,-155.78767783,0.00029873,5]
[356407147,1742412638218,-2787.72012411,0.00029877,2]
[356407148,1742412638227,-500.0,0.00029878,2]
[356407149,1742412638237,-612.13295475,0.00029878,2]
[356407150,1742412638247,-504.22952637,0.00029878,2]
[356407152,1742412638264,-500.0,0.00029878,2]
[356407153,1742412638274,-458.25014578,0.00029878,2]
[356407154,1742412638287,-468.66509651,0.00029878,2]
[356407156,1742412638297,-500.0,0.00029878,2]
[356407157,1742412638306,-500.0,0.00029878,2]
[356407158,1742412638315,-498.85706264,0.00029878,2]
[356407159,1742412638325,-505.90617332,0.00029878,2]
[356407161,1742412638334,-271.02389558,0.00029878,2]
[356407162,1742412638344,-500.0,0.00029878,2]
[356407163,1742412638353,-567.88318191,0.00029878,2]
[356407164,1742412638362,-1560.354821,0.00029878,2]
[356407166,1742412638371,-500.0,0.00029878,2]
[356407167,1742412638381,-500.0,0.00029878,2]
[356407168,1742412638390,-1279.389165,0.00029878,2]
[356407169,1742412638399,-156.956242,0.00029878,2]
[356407171,1742412638408,-151.886926,0.00029878,2]
[356407172,1742412638418,-500.0,0.00029878,2]
[356407173,1742412638427,-500.0,0.00029878,2]
[356407174,1742412638437,-500.0,0.00029878,2]
[356407176,1742412638446,-500.0,0.00029878,2]
[356407177,1742412638455,-500.0,0.00029878,2]
[356407178,1742412638464,-619.94,0.00029878,2]
[356407179,1742412638474,-500.0,0.00029878,2]
[356407181,1742412638486,-583.26,0.00029878,2]
[356407182,1742412638498,-500.0,0.00029878,2]
[356407183,1742412638507,-500.0,0.00029878,2]
[356407184,1742412638516,-527.36,0.00029878,2]
[356407186,1742412638527,-500.0,0.00029878,2]
[356407187,1742412638537,-632.37,0.00029878,2]
[356407188,1742412638546,-500.0,0.00029878,2]
[356407189,1742412638556,-500.0,0.00029878,2]
[356407191,1742412638567,-500.0,0.00029878,2]
[356407192,1742412638577,-500.0,0.00029878,2]
[356407193,1742412638587,-500.0,0.00029878,2]
[356407194,1742412638596,-756.04,0.00029878,2]
[356407196,1742412638605,-373.28564499,0.00029878,2]
[356407197,1742412638615,-500.0,0.00029878,2]
[356407198,1742412638625,-565.09664657,0.00029878,2]
[356407200,1742412638634,-500.0,0.00029878,2]
[356407201,1742412638643,-500.0,0.00029878,2]
[356407202,1742412638654,-500.0,0.00029878,2]
[356407203,1742412638663,-300.3597305,0.00029878,2]
[356407205,1742412638675,-500.0,0.00029878,2]
[356407206,1742412638684,-500.0,0.00029878,2]
[356407207,1742412638695,-500.0,0.00029878,2]
[356407208,1742412638706,-500.0,0.00029878,2]
[356407210,1742412638717,-427.15504448,0.00029878,2]
[356407211,1742412638726,-500.0,0.00029878,2]
[356407212,1742412638735,-548.98709105,0.00029878,2]
[356407214,1742412638745,-500.0,0.00029878,2]
[356407215,1742412638754,-500.0,0.00029878,2]
[356407216,1742412638763,-500.0,0.00029878,2]
[356407217,1742412638773,-757.69,0.00029878,2]
[356407219,1742412638782,-898.54,0.00029878,2]
[356407220,1742412638792,-509.29,0.00029878,2]
[356407221,1742412638801,-500.0,0.00029878,2]
[356407222,1742412638810,-500.0,0.00029878,2]
[356407224,1742412638820,-1010.75,0.00029878,2]
[356407225,1742412638829,-587.60759719,0.00029878,2]
[356407226,1742412638839,-500.0,0.00029878,2]
[356407227,1742412638848,-500.0,0.00029878,2]
[356407229,1742412638857,-500.0,0.00029878,2]
[356407230,1742412638867,-500.0,0.00029878,2]
[356407231,1742412638876,-521.44566826,0.00029878,2]
[356407232,1742412638886,-500.0,0.00029878,2]
[356407234,1742412638895,-835.91,0.00029878,2]
[356407235,1742412638905,-1636.36,0.00029878,2]
[356407236,1742412638915,-523.69497074,0.00029878,2]
[356407237,1742412638924,-500.0,0.00029878,2]
[356407239,1742412638934,-500.0,0.00029878,2]
[356407240,1742412638943,-500.0,0.00029878,2]
[356407241,1742412638952,-500.0,0.00029878,2]
[356407242,1742412638962,-542.99842986,0.00029878,2]
[356407243,1742412638971,-500.0,0.00029878,2]
[356407245,1742412638980,-500.0,0.00029878,2]
[356407246,1742412638990,-513.53,0.00029878,2]
[356407247,1742412639001,-517.61,0.00029878,2]
[356407249,1742412639011,-500.0,0.00029878,2]
[356407250,1742412639020,-500.0,0.00029878,2]
[356407251,1742412639030,-500.0,0.00029878,2]
[356407252,1742412639040,-500.0,0.00029878,2]
[356407254,1742412639050,-300.0,0.00029878,2]
[356407255,1742412639059,-500.0,0.00029878,2]
[356407256,1742412639069,-874.76,0.00029878,2]
[356407257,1742412639079,-500.0,0.00029878,2]
[356407259,1742412639087,-695.33,0.00029878,2]
[356407260,1742412639097,-887.91,0.00029878,2]
[356407261,1742412639106,-500.0,0.00029878,2]
[356407262,1742412639115,-500.0,0.00029878,2]
[356407264,1742412639124,-500.0,0.00029878,2]
[356407265,1742412639134,-500.0,0.00029878,2]
[356407266,1742412639143,-517.12,0.00029878,2]
[356407267,1742412639152,-707.66,0.00029878,2]
[356407269,1742412639162,-690.69,0.00029878,2]
[356407270,1742412639172,-500.0,0.00029878,2]
[356407271,1742412639181,-500.0,0.00029878,2]
[356407272,1742412639190,-500.0,0.00029878,2]
[356407274,1742412639202,-1646.14,0.00029878,2]
[356407275,1742412639211,-754.09,0.00029878,2]
[356407276,1742412639221,-500.0,0.00029878,2]
[356407277,1742412639230,-906.44,0.00029878,2]
[356407279,1742412639240,-802.03,0.00029878,2]
[356407280,1742412639252,-508.76,0.00029878,2]
[356407281,1742412639262,-500.0,0.00029878,2]
[356407283,1742412639275,-500.0,0.00029878,2]
[356407284,1742412639283,-500.0,0.00029878,2]
[356407285,1742412639293,-500.0,0.00029878,2]
[356407286,1742412639303,-500.0,0.00029878,2]
[356407288,1742412639313,-500.0,0.00029878,2]
[356407289,1742412639323,-500.0,0.00029878,2]
[356407290,1742412639332,-500.0,0.00029878,2]
[356407291,1742412639341,-902.07,0.00029878,2]
[356407293,1742412639350,-500.0,0.00029878,2]
[356407294,1742412639359,-915.17,0.00029878,2]
[356407295,1742412639368,-500.0,0.00029878,2]
[356407296,1742412639378,-500.0,0.00029878,2]
[356407298,1742412639387,-500.0,0.00029878,2]
[356407299,1742412639397,-936.12,0.00029878,2]
[356407300,1742412639406,-500.0,0.00029878,2]
[356407301,1742412639416,-500.0,0.00029878,2]
[356407303,1742412639425,-500.0,0.00029878,2]
[356407304,1742412639435,-695.5,0.00029878,2]
[356407305,1742412639444,-366.4,0.00029878,2]
[356407306,1742412639453,-500.0,0.00029878,2]
[356407308,1742412639462,-500.0,0.00029878,2]
[356407309,1742412639472,-500.0,0.00029878,2]
[356407310,1742412639483,-500.0,0.00029878,2]
[356407312,1742412639495,-500.0,0.00029878,2]
[356407313,1742412639507,-500.0,0.00029878,2]
[356407315,1742412639517,-500.0,0.00029878,2]
[356407316,1742412639527,-500.0,0.00029878,2]
[356407318,1742412639536,-200.0,0.00029878,2]
[356407319,1742412639545,-500.0,0.00029878,2]
[356407320,1742412639554,-971.34,0.00029878,2]
[356407321,1742412639566,-500.0,0.00029878,2]
[356407323,1742412639575,-500.0,0.00029878,2]
[356407324,1742412639585,-500.0,0.00029878,2]
[356407325,1742412639595,-500.0,0.00029878,2]
[356407326,1742412639606,-521.48,0.00029878,2]
[356407327,1742412639615,-500.0,0.00029878,2]
[356407328,1742412639625,-793.85,0.00029878,2]
[356407329,1742412639635,-1059.48,0.00029878,2]
[356407330,1742412639645,-500.0,0.00029878,2]
[356407331,1742412639656,-619.99042464,0.00029878,2]
[356407332,1742412639665,-698.6,0.00029878,2]
[356407333,1742412639675,-500.0,0.00029878,2]
[356407334,1742412639685,-602.3,0.00029878,2]
[356407335,1742412639694,-709.99,0.00029878,2]
[356407336,1742412639703,-500.0,0.00029878,2]
[356407337,1742412639713,-500.0,0.00029878,2]
[356407338,1742412639722,-1004.36,0.00029878,2]
[356407339,1742412639732,-802.35,0.00029878,2]
[356407340,1742412639741,-588.17767047,0.00029878,2]
[356407341,1742412639753,-500.0,0.00029878,2]
[356407342,1742412639763,-1840.22,0.00029878,2]
[356407343,1742412639772,-500.0,0.00029878,2]
[356407344,1742412639782,-500.0,0.00029878,2]
[356407345,1742412639792,-500.0,0.00029878,2]
[356407346,1742412639801,-569.02,0.00029878,2]
[356407347,1742412639811,-500.0,0.00029878,2]
[356407349,1742412639820,-500.0,0.00029878,2]
[356407350,1742412639830,-500.0,0.00029878,2]
[356407351,1742412639839,-500.0,0.00029878,2]
[356407352,1742412639849,-505.5554029,0.00029878,2]
[356407354,1742412639858,-500.0,0.00029878,2]
[356407355,1742412639868,-739.07,0.00029878,2]
[356407356,1742412639877,-500.0,0.00029878,2]
[356407358,1742412639887,-604.74,0.00029878,2]
[356407359,1742412639896,-500.0,0.00029878,2]
[356407360,1742412639906,-500.0,0.00029878,2]
[356407362,1742412639916,-570.05,0.00029878,2]
[356407363,1742412639926,-500.0,0.00029878,2]
[356407364,1742412639936,-500.0,0.00029878,2]
[356407366,1742412639945,-500.0,0.00029878,2]
[356407367,1742412639955,-928.87,0.00029878,2]
[356407368,1742412639965,-351.21445012,0.00029878,2]
[356407369,1742412639975,-608.71008105,0.00029878,2]
[356407371,1742412639985,-624.72,0.00029878,2]
[356407372,1742412639995,-500.0,0.00029878,2]
[356407373,1742412640008,-1681.19,0.00029878,2]
[356407375,1742412640019,-576.81,0.00029878,2]
[356407376,1742412640028,-500.0,0.00029878,2]
[356407377,1742412640039,-902.18,0.00029878,2]
[356407379,1742412640048,-525.58,0.00029878,2]
[356407380,1742412640059,-755.85,0.00029878,2]
[356407381,1742412640069,-500.0,0.00029878,2]
[356407383,1742412640079,-500.0,0.00029878,2]
[356407384,1742412640088,-500.0,0.00029878,2]
[356407385,1742412640097,-500.0,0.00029878,2]
[356407387,1742412640107,-741.59,0.00029878,2]
[356407388,1742412640117,-500.0,0.00029878,2]
[356407389,1742412640126,-500.0,0.00029878,2]
[356407391,1742412640135,-500.0,0.00029878,2]
[356407392,1742412640144,-500.0,0.00029878,2]
[356407393,1742412640154,-500.0,0.00029878,2]
[356407395,1742412640164,-552.73,0.00029878,2]
[356407396,1742412640173,-500.0,0.00029878,2]
[356407397,1742412640183,-500.0,0.00029878,2]
[356407399,1742412640193,-500.0,0.00029878,2]
[356407400,1742412640203,-662.93,0.00029878,2]
[356407401,1742412640213,-503.70851809,0.00029878,2]
[356407403,1742412640223,-1628.05,0.00029878,2]
[356407404,1742412640232,-227.05093001,0.00029878,2]
[356407405,1742412640242,-1018.17,0.00029878,2]
[356407407,1742412640254,-500.0,0.00029878,2]
[356407408,1742412640263,-500.0,0.00029878,2]
[356407409,1742412640273,-500.0,0.00029878,2]
[356407410,1742412640283,-351.47088731,0.00029878,2]
[356407412,1742412640293,-500.0,0.00029878,2]
[356407428,1742412640524,-500.0,0.00029878,2]
[356407430,1742412640535,-500.28474279,0.00029878,2]
[356407433,1742412640546,-500.0,0.00029878,2]
[356407435,1742412640555,-526.23,0.00029878,2]
[356407438,1742412640567,-500.0,0.00029878,2]
[356407439,1742412640577,-500.0,0.00029878,2]
[356407440,1742412640587,-500.0,0.00029878,2]
[356407442,1742412640597,-500.0,0.00029878,2]
[356407443,1742412640607,-1072.33,0.00029878,2]
[356407444,1742412640617,-500.0,0.00029878,2]
[356407446,1742412640627,-596.25,0.00029878,2]
[356407447,1742412640636,-500.0,0.00029878,2]
[356407449,1742412640646,-500.0,0.00029878,2]
[356407450,1742412640657,-526.28,0.00029878,2]
[356407451,1742412640667,-500.0,0.00029878,2]
[356407453,1742412640677,-500.0,0.00029878,2]
[356407454,1742412640687,-1500.0,0.00029878,2]
[356407455,1742412640696,-500.0,0.00029878,2]
[356407457,1742412640706,-500.0,0.00029878,2]
[356407458,1742412640716,-500.0,0.00029878,2]
[356407460,1742412640726,-500.0,0.00029878,2]
[356407461,1742412640735,-858.73,0.00029878,2]
[356407462,1742412640746,-500.0,0.00029878,2]
[356407464,1742412640758,-592.42,0.00029878,2]
[356407465,1742412640768,-500.0,0.00029878,2]
[356407467,1742412640778,-500.0,0.00029878,2]